Cogmind - Beta 13 @@@ ROGUE MODE // 2024.04.12 @ 22:14:14 Player: Phosphophyllite Result: Destroyed by S-27 Virus with Autogun Performance ------------- Evolutions (5) 2500 Regions Visited (11) 2200 Robots Destroyed (38) 190 Value Destroyed (1230) 1230 Prototype IDs (4) 80 Alien Tech Used (0) 0 Bonus (584) 584 TOTAL SCORE: 6784 Bonus ------- High Alert Combat Kills 70 Follower Combat Kills 514 Cogmind --------- Core Integrity 0/1000 Matter 224/300 Energy 96/100 System Corruption 0% Temperature Cool (0) Movement Flying (105) Ox1 Location -5/Factory Parts ------- > --- POWER (2) -------- (None) > --- PROPULSION (4) --- Biomechanical Wings > --- UTILITY (9) ------ Advanced Signal Interpreter Improved Terrain Scan Processor > --- WEAPON (2) ------- Hypervelocity Gauss Cannon > --- INVENTORY (5) ---- Heavy Laser Remote Datajack Chainsword Peak State ------------ > --- POWER ------------ Backup Power III > --- PROPULSION ------- Nuclear Pulse Thruster Nuclear Pulse Thruster Biomechanical Wings > --- UTILITY ---------- Improved Trap Scanner Experimental Sensor Array Advanced Signal Interpreter Improved Terrain Scan Processor Targeting Computer Cloaking Device Hacking Suite > --- WEAPON ----------- Improved Spread Laser Plasma Cannon > --- INVENTORY -------- Field Laser Remote Datajack [Rating: 59] Favorites ----------- Power Light Ion Engine Engine Light Ion Engine Power Core Light Fission Core Propulsion Flight Unit Treads Light Treads Leg Improved Carbon-fiber Leg Hover Unit Airjet Flight Unit Flight Unit Utility Targeting Computer Device Experimental Sensor Array Storage Small Storage Unit Processor Targeting Computer Hackware Hacking Suite Weapon Light Assault Rifle Energy Gun EM Pulse Gun Energy Cannon Plasma Cannon Ballistic Gun Light Assault Rifle Ballistic Cannon Hypervelocity Gauss Cannon Special Weapon Remote Datajack Slashing Weapon Chainsword Special Melee Weapon Datajack Build | -11 -10 -10 -9 -8 -7 -6 -6 -6 -6 -6 -5 ------- Run | Yrd Mat Min Mat Mat Fac Fac Was Fac Low Low Fac Slots Evolved 10 | . . . 2 2 2 2 . . . . 2 Power 1 | . . . . . . 1 . . . . . Propulsion 2 | . . . . 1 . . . . . . 1 Utility 7 | . . . 2 1 2 1 . . . . 1 Weapon . | . . . . . . . . . . . . Parts Attached 83 | 7 3 1 3 4 8 5 2 16 15 . 19 Power 8 | 1 . . . . 1 1 . 1 2 . 2 Engine 4 | 1 . . . . 1 1 . . . . 1 Core 4 | . . . . . . . . 1 2 . 1 Reactor . | . . . . . . . . . . . . Propulsion 21 | 2 2 . . 1 5 1 . 2 2 . 6 Treads 2 | 2 . . . . . . . . . . . Leg 4 | . . . . . . . . . 2 . 2 Wheel . | . . . . . . . . . . . . Hover 3 | . . . . 1 . . . . . . 2 Flight 12 | . 2 . . . 5 1 . 2 . . 2 Utility 20 | 2 1 1 3 1 1 2 . 4 2 . 3 Device 13 | 1 1 . 3 . 1 1 . 3 1 . 2 Storage 1 | 1 . . . . . . . . . . . Processor 5 | . . 1 . 1 . 1 . . 1 . 1 Hackware 1 | . . . . . . . . 1 . . . Protection . | . . . . . . . . . . . . Artifact . | . . . . . . . . . . . . Weapon 34 | 2 . . . 2 1 1 2 9 9 . 8 Energy Gun 12 | 1 . . . . . 1 1 4 3 . 2 Energy Cannon 5 | . . . . . . . 1 3 . . 1 Ballistic Gun 6 | 1 . . . 2 . . . . 2 . 1 Ballistic Cannon 1 | . . . . . . . . . . . 1 Launcher . | . . . . . . . . . . . . Special Weapon 3 | . . . . . 1 . . 1 1 . . Impact Weapon . | . . . . . . . . . . . . Slashing Weapon 6 | . . . . . . . . . 3 . 3 Piercing Weapon . | . . . . . . . . . . . . Special Melee Weapon 1 | . . . . . . . . 1 . . . Unidentified Prototypes 4 | . . . 1 . . 1 . 2 . . . Parts Lost 41 | . . . . 1 4 . . 10 7 1 18 Power 8 | . . . . . 1 . . 2 2 . 3 Propulsion 11 | . . . . . 1 . . 4 1 . 5 Utility 12 | . . . . 1 1 . . 1 2 . 7 Weapon 10 | . . . . . 1 . . 3 2 1 3 Highest Loss Streak 7 | . . . . 1 4 . . 7 3 1 6 To Critical Strikes . | . . . . . . . . . . . . Average Slot Usage (%) 70 | . 100 100 88 71 70 66 74 75 60 64 48 Engine 6 | . 14 14 11 9 7 6 7 11 . . . Core 1 | . . . . . . . . . 5 6 2 Leg 1 | . . . . . . . . . 3 6 1 Flight 12 | . 11 28 22 18 23 20 20 18 . . . Device 13 | . 19 20 22 17 10 9 13 18 8 6 3 Processor 17 | . . 7 11 9 15 15 20 20 25 26 23 Hackware 2 | . . . . . . . . 1 6 6 1 Energy Gun 4 | . 14 14 11 8 . 5 6 3 . . . Ballistic Gun 4 | . 14 14 11 9 11 . . . 1 4 . Slashing Weapon 1 | . . . . . . . . . 3 6 5 Naked Turns . | . . . . . . . . . . . . Heaviest Build 24 | 12 12 8 9 10 10 13 15 19 24 24 23 Greatest Support 40 | 40 40 8 8 8 14 15 15 18 18 18 20 Greatest Overweight (x) 4 | 2 . . 1 2 . . . 2 4 1 3 Average Overweight (x) . | . . . . . . . . . 1 1 . Largest Inventory Capacity 8 | 8 8 5 5 5 5 5 5 5 5 5 5 Average Capacity 5 | 7 6 5 5 5 5 5 5 5 5 5 5 Most Carried 8 | 8 8 5 5 5 5 5 5 5 5 5 5 Average Carried 4 | 6 6 4 4 4 4 4 5 4 4 5 4 Final Capacity 8 | 8 5 5 5 5 5 5 5 5 5 5 5 Final Carried 7 | 7 5 5 5 5 5 5 5 3 5 5 3 Class Distribution -------------------- 64% | Mutant 16% | Derelict-Mutant 14% | Scout Dominant Class ---------------- Mutant | -10/Materials Mutant | -10/Mines Mutant | -9/Materials Mutant | -8/Materials Mutant | -7/Factory Scout | -6/Factory Scout | -6/Waste Scout | -6/Factory Mutant | -6/Lower Caves Derelict-Mutant | -6/Lower Caves Mutant | -5/Factory Resources | -11 -10 -10 -9 -8 -7 -6 -6 -6 -6 -6 -5 ----------- Run | Yrd Mat Min Mat Mat Fac Fac Was Fac Low Low Fac Matter Collected 1012 | 278 . 41 . 100 12 . . 286 210 . 85 Remotely . | . . . . . . . . . . . . Salvage Created 1239 | 147 11 93 . 67 31 . . 215 279 . 396 Parts 70 | 5 1 6 . 5 3 . . 11 23 . 16 Haulers Intercepted . | . . . . . . . . . . . . Recyclers Shooed 1 | 1 . . . . . . . . . . . Parts Field Recycled . | . . . . . . . . . . . . Retrieved Matter . | . . . . . . . . . . . . Parts Self-Destructed 23 | . . . . . . . . . 23 . . Prevented . | . . . . . . . . . . . . Kills | -11 -10 -10 -9 -8 -7 -6 -6 -6 -6 -6 -5 ------- Run | Yrd Mat Min Mat Mat Fac Fac Was Fac Low Low Fac Combat Hostiles Destroyed 31 | . . 4 . 3 1 . . 7 8 . 8 Melee 7 | . . . . . . . . . 2 . 5 Guns 18 | . . 2 . 3 1 . . 4 6 . 2 Cannons 3 | . . . . . . . . 2 . . 1 AOE 3 | . . 2 . . . . . 1 . . . Classes Destroyed 9 | 3 1 2 . . 1 . . 1 1 . . Worker 1 | 1 . . . . . . . . . . . Tunneler 2 | 1 . . . . . . . . . . 1 Recycler 1 | 1 . . . . . . . . . . . Operator 1 | . . . . . 1 . . . . . . Watcher 2 | . 1 . . . . . . 1 . . . Swarmer 20 | . . 3 . 2 1 . . 6 6 . 2 Grunt 8 | . . 1 . 1 . . . . . . 6 Sentry 1 | . . . . . . . . 1 . . . Hunter 2 | . . . . . . . . . 2 . . Best Kill Streak 4 | 2 1 4 . 2 2 . . 3 3 . 3 Combat Bots Only 4 | . . 4 . 2 1 . . 3 3 . 3 Max Kills in Single Turn 2 | 1 1 2 . 1 1 . . 2 1 . 1 Gunslinging . | . . . . . . . . . . . . Exploded 2 | . . 2 . . . . . 1 . . . Melee 1 | . . . . . . . . . 1 . 1 Uniques/NPCs Destroyed . | . . . . . . . . . . . . Combat | -11 -10 -10 -9 -8 -7 -6 -6 -6 -6 -6 -5 -------- Run | Yrd Mat Min Mat Mat Fac Fac Was Fac Low Low Fac Hostile Shots Fired 448 | . . 12 . 40 48 . . 58 85 8 197 Missed 166 | . . 7 . 22 28 . . 24 19 2 64 Damage Taken 4774 | . . 58 . 242 281 . 42 881 1035 94 2141 Core 1893 | . . 39 . 50 63 . 21 209 461 47 1003 Absorbed by Shields 158 | . . . . . . . . . 76 . 82 Regen/Repaired (Parts) 232 | . . . . . . . 12 105 . . 115 Core Remaining (%) 79 | 100 . 84 100 90 91 . . . . 13 . Volleys Fired 126 | 8 2 9 1 8 8 . 18 23 23 . 26 Largest 2 | 2 2 2 2 2 2 . 1 2 1 . 1 Hottest 155 | 60 60 60 60 60 43 . 80 155 63 . 98 Shots Fired 167 | 16 4 18 2 16 16 . 18 28 23 . 26 Gun 145 | 16 4 18 2 16 16 . 15 18 22 . 18 Cannon 21 | . . . . . . . 3 10 . . 8 Launcher . | . . . . . . . . . . . . Special 1 | . . . . . . . . . 1 . . Kinetic 78 | 8 2 9 1 12 16 . . . 20 . 10 Thermal 64 | . . . . . . . 18 28 2 . 16 Explosive . | . . . . . . . . . . . . Electromagnetic 24 | 8 2 9 1 4 . . . . . . . Robot Hit Streak 15 | 3 7 8 1 9 10 . 3 5 8 . 15 Robot Miss Streak 8 | 3 . 4 1 4 3 . 2 8 4 . 2 Penetration Max 1 | . . . . . . . . . . . 1 Secondary Targets 1 | . . . . . 1 . . . . . . Max Gunslinging Chain 1 | . . . . . 1 . . . . . . Shots Hit Robots 143 | 8 4 11 1 11 10 . 10 22 18 . 48 Core Hits 67 | 3 . 5 1 6 4 . 1 22 10 . 15 Critical Kills . | . . . . . . . . . . . . Critical Parts Destroyed 1 | . . . . . . . . . . . 1 Critical Strikes 5 | . . . . . . . . . . . 5 Destroy 1 | . . . . . . . . . . . 1 Sever 4 | . . . . . . . . . . . 4 Melee Attacks 45 | . . . . . . . . 3 6 . 36 Impact . | . . . . . . . . . . . . Slashing 42 | . . . . . . . . . 6 . 36 Piercing . | . . . . . . . . . . . . Sneak Attacks 4 | . . . . . . . . 3 . . 1 Combat Hostiles . | . . . . . . . . . . . . Follow-up Attacks 1 | . . . . . . . . . . . 1 Damage Inflicted 3264 | 167 58 166 10 140 109 . 258 361 408 . 1587 Guns 1552 | 80 58 105 10 140 109 . 206 284 269 . 291 Cannons 297 | . . . . . . . 52 77 . . 168 Explosions 148 | 87 . 61 . . . . . . . . . Melee 1267 | . . . . . . . . . 139 . 1128 Ramming . | . . . . . . . . . . . . Kinetic 695 | 14 16 30 10 118 109 . . . 269 . 129 Thermal 1097 | 87 . 61 . . . . 258 361 . . 330 Explosive . | . . . . . . . . . . . . Electromagnetic 205 | 66 42 75 . 22 . . . . . . . Impact . | . . . . . . . . . . . . Slashing 1267 | . . . . . . . . . 139 . 1128 Piercing . | . . . . . . . . . . . . Highest Corruption 2 | . . . . 2 . . . . . 2 . Average Corruption 1 | . . . . 2 . . . . . 1 . Corruption Purged . | . . . . . . . . . . . . Corruption Blocked . | . . . . . . . . . . . . Effects 5 | . . . . 5 . . . . . . . Message Errors 1 | . . . . 1 . . . . . . . Matter Fused 2 | . . . . 2 . . . . . . . Data Loss (minor) 1 | . . . . 1 . . . . . . . Data Loss (major) 1 | . . . . 1 . . . . . . . Overload Shots . | . . . . . . . . . . . . Overflow Damage 113 | 9 . 17 . . . . . 2 . . 85 Projectiles 2 | . . . . . . . . 2 . . . Explosions 26 | 9 . 17 . . . . . . . . . Melee 85 | . . . . . . . . . . . 85 Knockbacks . | . . . . . . . . . . . . Impact . | . . . . . . . . . . . . Kinetic . | . . . . . . . . . . . . Secondary . | . . . . . . . . . . . . Self-Inflicted Damage . | . . . . . . . . . . . . Shots . | . . . . . . . . . . . . Rammed . | . . . . . . . . . . . . Targets Rammed . | . . . . . . . . . . . . Kicked . | . . . . . . . . . . . . Crushed . | . . . . . . . . . . . . Highest Temperature 312 | 40 20 135 18 33 2 . 72 312 2 . 120 Average Temperature 60 | 16 15 67 13 12 2 . 17 109 1 . 33 Received Heat Transfer 1023 | . . 27 . 108 9 . . 30 . . 849 Siege Activations . | . . . . . . . . . . . . Robots Corrupted . | . . . . . . . . . . . . Combat Hostiles . | . . . . . . . . . . . . Parts Fried 1 | . 1 . . . . . . . . . . Impact Corruptions . | . . . . . . . . . . . . Robots Melted . | . . . . . . . . . . . . Combat Hostiles . | . . . . . . . . . . . . Parts Melted 4 | . . . . . . . . 2 . . 2 Heat Transferred 1691 | 100 . 50 . . . . 544 390 . . 607 Parts Sabotaged . | . . . . . . . . . . . . Parts Stolen . | . . . . . . . . . . . . Parts Stripped . | . . . . . . . . . . . . Power Chain Reactions 2 | 1 . 1 . . . . . . . . . Alert | -11 -10 -10 -9 -8 -7 -6 -6 -6 -6 -6 -5 ------- Run | Yrd Mat Min Mat Mat Fac Fac Was Fac Low Low Fac Peak Influence 731 | 15 46 129 50 150 280 137 105 731 . . 285 Initial 137 | . 9 17 50 . 67 137 47 73 . . 83 Average 145 | 6 29 95 24 23 137 137 65 499 . . 87 Maximum Alert Level 3 | . . . . . 1 . . 3 . . 1 Low Security (%) 78 | 100 100 100 100 100 66 100 100 6 . . 96 Level 1 7 | . . . . . 33 . . 22 . . 3 Level 2 12 | . . . . . . . . 60 . . . Level 3 2 | . . . . . . . . 10 . . . Level 4 . | . . . . . . . . . . . . Level 5 . | . . . . . . . . . . . . High Security . | . . . . . . . . . . . . Max Security . | . . . . . . . . . . . . Squads Dispatched 16 | . . . 1 1 3 . . 10 . . 1 Investigation 5 | . . . . . 1 . . 3 . . 1 Extermination 3 | . . . . . . . . 3 . . . Reinforcement 7 | . . . 1 1 1 . . 4 . . . Assault . | . . . . . . . . . . . . Garrison 1 | . . . . . 1 . . . . . . Intercept . | . . . . . . . . . . . . Searches Triggered . | . . . . . . . . . . . . Construction Impeded . | . . . . . . . . . . . . Haulers Reinforced 1 | . . . . . . . . 1 . . . Active Scanning Responses . | . . . . . . . . . . . . Cargo Convoy Interrupts . | . . . . . . . . . . . . Stealth | -11 -10 -10 -9 -8 -7 -6 -6 -6 -6 -6 -5 --------- Run | Yrd Mat Min Mat Mat Fac Fac Was Fac Low Low Fac Distress Signals 4 | . . . . 3 . . . 1 . . . Communications Jammed . | . . . . . . . . . . . . Distress Signals . | . . . . . . . . . . . . Times Spotted 107 | . 1 7 1 14 16 . 6 23 13 1 25 Peak Tracking Total 14 | . 1 5 1 9 10 . 6 8 4 1 14 Tactical Retreats 18 | . . 3 . 3 3 . . 4 1 . 4 Traps | -11 -10 -10 -9 -8 -7 -6 -6 -6 -6 -6 -5 ------- Run | Yrd Mat Min Mat Mat Fac Fac Was Fac Low Low Fac Traps Triggered 9 | . . . . 1 . 1 . 4 . . 3 Indirectly . | . . . . . . . . . . . . Trap Hack Attempts . | . . . . . . . . . . . . Triggered . | . . . . . . . . . . . . Disarmed . | . . . . . . . . . . . . Reprogrammed . | . . . . . . . . . . . . Reused . | . . . . . . . . . . . . Traps Extracted . | . . . . . . . . . . . . Installed . | . . . . . . . . . . . . Triggered 1 | . 1 . . . . . . . . . . Machines | -11 -10 -10 -9 -8 -7 -6 -6 -6 -6 -6 -5 ---------- Run | Yrd Mat Min Mat Mat Fac Fac Was Fac Low Low Fac Machines Disabled 10 | . . . . . . . . 8 . . 2 Max in Single Turn 1 | . . . . . . . . . . . 1 Machines Repaired . | . . . . . . . . . . . . Machines Dismantled . | . . . . . . . . . . . . Machines Sabotaged . | . . . . . . . . . . . . Overloaded Fab Kills . | . . . . . . . . . . . . Hacking | -11 -10 -10 -9 -8 -7 -6 -6 -6 -6 -6 -5 --------- Run | Yrd Mat Min Mat Mat Fac Fac Was Fac Low Low Fac Machines Accessed 14 | . 2 . 1 1 1 . . 5 1 . 3 Terminals 8 | . 2 . 1 . . . . 4 . . 1 Fabricators 2 | . . . . . 1 . . . . . 1 Repair Stations 2 | . . . . . . . . 1 . . 1 Recycling Units . | . . . . . . . . . . . . Scanalyzers 1 | . . . . 1 . . . . . . . Garrison Access . | . . . . . . . . . . . . Total Hacks 30 | . 3 . 1 3 2 . . 12 1 . 8 Successful 15 | . 1 . . 2 2 . . 4 1 . 5 Failed 15 | . 2 . 1 1 . . . 8 . . 3 Catastrophic 4 | . . . 1 . . . . 2 . . 1 Database Lockouts . | . . . . . . . . . . . . Manual 5 | . 3 . 1 . . . . 1 . . . Terminals 15 | . 3 . 1 . . . . 10 . . 1 Fabricators 5 | . . . . . 2 . . . . . 3 Repair Stations 6 | . . . . . . . . 2 . . 4 Recycling Units . | . . . . . . . . . . . . Scanalyzers 3 | . . . . 3 . . . . . . . Garrison Access . | . . . . . . . . . . . . Terminal Hacks 4 | . . . . . . . . 2 1 . 1 Record 2 | . . . . . . . . 1 . . 1 Robot Analysis 1 | . . . . . . . . 1 . . . Open Door 1 | . . . . . . . . . 1 . . Fabricator Hacks 4 | . . . . . 2 . . . . . 2 Load Schematic 2 | . . . . . 1 . . . . . 1 Build 2 | . . . . . 1 . . . . . 1 Repair Station Hacks 4 | . . . . . . . . 2 . . 2 Scan Component 2 | . . . . . . . . 1 . . 1 Repair 2 | . . . . . . . . 1 . . 1 Recycling Unit Hacks . | . . . . . . . . . . . . Scanalyzer 2 | . . . . 2 . . . . . . . Insert Component 1 | . . . . 1 . . . . . . . Analyze 1 | . . . . 1 . . . . . . . Garrison Access Hacks . | . . . . . . . . . . . . Unauthorized Hacks 1 | . 1 . . . . . . . . . . Terminals 1 | . 1 . . . . . . . . . . Botnet 1 | . 1 . . . . . . . . . . Fabricators . | . . . . . . . . . . . . Repair Stations . | . . . . . . . . . . . . Recycling Units . | . . . . . . . . . . . . Scanalyzers . | . . . . . . . . . . . . Garrison Access . | . . . . . . . . . . . . Data Cores Recovered . | . . . . . . . . . . . . Used . | . . . . . . . . . . . . Hacking Detections 10 | . 2 . 1 1 1 . . 3 . . 2 Full Trace Events 6 | . 1 . . 1 1 . . 2 . . 1 Feedback Events . | . . . . . . . . . . . . Feedback Blocked . | . . . . . . . . . . . . Robot Schematics Acquired . | . . . . . . . . . . . . Robots Built . | . . . . . . . . . . . . Authchips . | . . . . . . . . . . . . Time . | . . . . . . . . . . . . Total Robot Build Rating . | . . . . . . . . . . . . Part Schematics Acquired 1 | . . . . 1 . . . . . . . Parts Built 4 | . . . . . 2 . . . . . 2 Authchips . | . . . . . . . . . . . . Time 109 | . . . . . 73 . . . . . 36 Total Part Build Rating 12 | . . . . . 6 . . . . . 6 Parts Repaired 2 | . . . . . . . . 1 . . 1 Time 72 | . . . . . . . . 50 . . 22 Parts Recycled . | . . . . . . . . . . . . Recycled Matter . | . . . . . . . . . . . . Retrieved Matter . | . . . . . . . . . . . . Retrieved Components . | . . . . . . . . . . . . Parts Scanalyzed 1 | . . . . 1 . . . . . . . Part Schematics Acquired 1 | . . . . 1 . . . . . . . Parts Damaged 1 | . . . . 1 . . . . . . . Bothacking | -11 -10 -10 -9 -8 -7 -6 -6 -6 -6 -6 -5 ------------ Run | Yrd Mat Min Mat Mat Fac Fac Was Fac Low Low Fac Used RIF Installer . | . . . . . . . . . . . . Robots Hacked 1 | . . . . . . . . 1 . . . Non-combat 1 | . . . . . . . . 1 . . . Combat . | . . . . . . . . . . . . Robot Hacks Applied 3 | . . . . . . . . 3 . . . parse_system 1 | . . . . . . . . 1 . . . no_distress 1 | . . . . . . . . 1 . . . find_station 1 | . . . . . . . . 1 . . . Relay Couplers Released . | . . . . . . . . . . . . Fabnet Peak Effective % . | . . . . . . . . . . . . Robots Rewired . | . . . . . . . . . . . . Allies Hacked . | . . . . . . . . . . . . Hacks Repelled . | . . . . . . . . . . . . Allies | -11 -10 -10 -9 -8 -7 -6 -6 -6 -6 -6 -5 -------- Run | Yrd Mat Min Mat Mat Fac Fac Was Fac Low Low Fac Total Allies 21 | . . 2 . . . . 19 . . . . Largest Group 18 | . . 2 . . . . 18 17 . . . Highest-Rated Group 638 | . . 53 . . . . 638 613 . . . Highest-Rated Ally 50 | . . 31 . . . . 50 50 . . . Total Orders . | . . . . . . . . . . . . Ally Attacks 202 | . . 8 . . . . 108 86 . . . Total Damage 5478 | . . 102 . . . . 3477 1899 . . . Kills 25 | . . . . . . . 7 18 . . . Allies Corrupted . | . . . . . . . . . . . . Allies Melted 1 | . . . . . . . . 1 . . . Intel | -11 -10 -10 -9 -8 -7 -6 -6 -6 -6 -6 -5 ------- Run | Yrd Mat Min Mat Mat Fac Fac Was Fac Low Low Fac Robot Analysis Total 1 | . . . . . . . . 1 . . . Derelict Logs Recovered 3 | . . 2 . . . . . . 1 . . Drone Launches 2 | . . . . . . . . 2 . . . Drone Recoveries 1 | . . . . . . . . 1 . . . Decoded 0b10 Intel 11 | . . . . . . . . . . . 11 Garrisons 2 | . . . . . . . . . . . 2 Patrols 6 | . . . . . . . . . . . 6 Investigations 2 | . . . . . . . . . . . 2 Guards 1 | . . . . . . . . . . . 1 Exploration | -11 -10 -10 -9 -8 -7 -6 -6 -6 -6 -6 -5 ------------- Run | Yrd Mat Min Mat Mat Fac Fac Was Fac Low Low Fac Turns Passed 5164 | 151 193 160 799 521 227 149 206 764 1302 37 655 Spaces Moved 4457 | 76 186 341 414 406 307 318 342 939 669 20 439 Core 433 | 21 . . . 144 . . . . 242 . 26 Treads 111 | 55 56 . . . . . . . . . . Legs 540 | . . . . . . . . . 427 20 93 Wheels . | . . . . . . . . . . . . Hover 212 | . . . . . . . . . . . 212 Flight 3161 | . 130 341 414 262 307 318 342 939 . . 108 Fastest Speed 32 | 50 37 37 37 37 32 32 32 32 90 190 34 Average Speed 72 | 144 74 37 37 78 33 32 32 45 181 190 88 Slowest Speed 250 | 160 160 37 117 150 34 32 32 170 250 190 200 Overloaded Moves . | . . . . . . . . . . . . Propulsion Burnouts . | . . . . . . . . . . . . Robots Hopped 13 | . . 4 3 . 2 . . 2 . . 2 Cave-ins Triggered . | . . . . . . . . . . . . Exploration Rate (%) 31 | 5 33 64 27 21 12 7 90 24 77 4 15 Regions Visited 11 Branch Regions 3 Pre-discovered Areas 1 | . . . . . . . . . 1 . . Known Exits Taken 4 | . . . 1 . . . . 1 1 1 . Unknown Exits Taken 5 | 1 1 1 . 1 1 . . . . . . Scrap Searched 5 | . . 2 . . . . . . 3 . . Spaces Dug . | . . . . . . . . . . . . Terrain Destroyed 6 | 3 . 3 . . . . . . . . . Melee . | . . . . . . . . . . . . Projectile . | . . . . . . . . . . . . AOE 6 | 3 . 3 . . . . . . . . . Terrain Rammed . | . . . . . . . . . . . . Walls Destroyed . | . . . . . . . . . . . . Machines Disabled . | . . . . . . . . . . . . Actions | -11 -10 -10 -9 -8 -7 -6 -6 -6 -6 -6 -5 --------- Run | Yrd Mat Min Mat Mat Fac Fac Was Fac Low Low Fac Total 6153 | 102 239 354 1052 594 411 366 418 1255 722 19 621 Wait 1291 | . 37 5 634 169 88 38 57 199 2 . 62 Move 4421 | 75 185 332 407 405 302 318 341 934 668 19 435 Hop 13 | . . 4 3 . 2 . . 2 . . 2 Pick Up 44 | 12 5 1 2 2 3 1 . 5 6 . 7 Fast Attach 29 | 2 . 1 . 3 2 3 . 4 6 . 8 Attach 37 | 5 1 . 3 . 3 1 . 11 5 . 8 Detach 13 | . . . 1 1 . 1 . 8 1 . 1 Swap 17 | . 2 . . 1 3 1 2 1 4 . 3 Drop 33 | . 7 2 1 5 . 3 . 11 1 . 3 Fire 126 | 8 2 9 1 8 8 . 18 23 23 . 26 Melee 44 | . . . . . . . . 3 6 . 35 Ram . | . . . . . . . . . . . . Kick . | . . . . . . . . . . . . Crush . | . . . . . . . . . . . . Escape Stasis 85 | . . . . . . . . 54 . . 31 Rewire . | . . . . . . . . . . . . Trap . | . . . . . . . . . . . . Miscellaneous . | . . . . . . . . . . . . Route ------- -11/Scrapyard -10/Materials -10/Mines -9/Materials (discovered 2 exits: *Mat x2) -8/Materials -7/Factory -6/Factory -6/Waste -6/Factory -6/Lower Caves -6/Lower Caves -5/Factory History --------- Turn | Location | Event 23 | -11/Scrapyard | Discovered new exit (range 16) 152 | -11/Scrapyard | Entered Materials 307 | -10/Materials | Build established: Mutant 311 | -10/Materials | Discovered new exit (range 14) 345 | -10/Materials | Entered Mines 351 | -10/Mines | Learned 2 Materials zone layouts 356 | -10/Mines | Met a Derelict bent on vengeance 401 | -10/Mines | Found a damaged Exp. Sensor Array with a note attached 404 | -10/Mines | Found Prototype Device 448 | -10/Mines | Learned Materials emergency access door positions 461 | -10/Mines | Assembled infested the area 502 | -10/Mines | Discovered new exit (range 10) 505 | -10/Mines | Entered Materials 505 | -9/Materials | Evolved 2 slots: Utility x2 506 | -9/Materials | Identified exit to Materials 506 | -9/Materials | Identified Exp. Sensor Array 1294 | -9/Materials | Discovered exit to Materials (range 16) 1304 | -9/Materials | Entered another Materials area 1304 | -8/Materials | Evolved 2 slots: Propulsion x1, Utility x1 1821 | -8/Materials | Discovered new exit (range 9) 1825 | -8/Materials | Entered Factory 1825 | -7/Factory | Evolved 2 slots: Utility x2 1909 | -7/Factory | Garrison activated, responded to threat 1919 | -7/Factory | Fabricated Airjet? 1974 | -7/Factory | Discovered new exit (range 12) 1982 | -7/Factory | Lost 4 parts (1p1n1u1w) 2052 | -7/Factory | Entered another Factory area 2052 | -6/Factory | Evolved 2 slots: Power x1, Utility x1 2201 | -6/Factory | Sucked down chute 2201 | -6/Factory | Entered Waste 2202 | -6/Waste | Met a frightened Derelict 2206 | -6/Waste | Spotted C-40 Crusher 2233 | -6/Waste | Spotted C-40 Crusher 2234 | -6/Waste | Spotted C-40 Crusher 2250 | -6/Waste | Spotted C-40 Crusher 2251 | -6/Waste | Spotted C-40 Crusher 2252 | -6/Waste | Spotted C-40 Crusher 2338 | -6/Waste | Discovered new exit (range 12) 2342 | -6/Waste | Warlord forces began an assault 2352 | -6/Waste | Allies destroyed C-40 Crusher 2359 | -6/Waste | Allies destroyed C-40 Crusher 2399 | -6/Waste | Identified exit to Factory 2407 | -6/Waste | Entered Factory 2407 | -6/Factory | Accompanied by 17 allies 2486 | -6/Factory | Lost 8 allies 2512 | -6/Factory | Repaired Drone Bay 2994 | -6/Factory | Build established: Scout 3131 | -6/Factory | Lost 7 parts (1p3n1u2w) 3156 | -6/Factory | Discovered new exit (range 11) 3170 | -6/Factory | Identified exit to Lower Caves 3171 | -6/Factory | Entered Lower Caves 3317 | -6/Lower Caves | Core integrity fell below 50% 3346 | -6/Lower Caves | Lost 3 parts (1p1n1w) 3411 | -6/Lower Caves | Build established: Mutant 4188 | -6/Lower Caves | Build established: Derelict-Mutant 4334 | -6/Lower Caves | Core integrity fell below 20% 4452 | -6/Lower Caves | Discovered new exit (range 4) 4471 | -6/Lower Caves | Identified exit to Lower Caves 4473 | -6/Lower Caves | Entered another Lower Caves area 4491 | -6/Lower Caves | Discovered new exit (range 11) 4508 | -6/Lower Caves | Identified exit to Factory 4510 | -6/Lower Caves | Entered Factory 4510 | -5/Factory | Evolved 2 slots: Propulsion x1, Utility x1 4569 | -5/Factory | Repaired Imp. Carbon-fiber Leg 4738 | -5/Factory | Fabricated Airjet (x2) 4786 | -5/Factory | Lost 6 parts (1p1n3u1w) 5020 | -5/Factory | Lost 6 parts (2p2n2u) 5035 | -5/Factory | Core integrity fell below 50% 5051 | -5/Factory | Build established: Mutant 5131 | -5/Factory | Spotted B-75 Beast 5142 | -5/Factory | Core integrity fell below 20% 5165 | -5/Factory | Destroyed by S-27 Virus with Autogun Last Messages --------------- 05131_ K-01 Serf cleans the Assembly Bed. 05134_ Slug penetrates Assembly Bed. 05134_ Assembly Bed disabled. 05134_ K-01 Serf collects debris. 05136_ Slug penetrates Assembly Bed. 05136_ Assembly Bed disabled. 05138_ K-01 Serf collects debris. 05138_ Slug penetrates S-27 Virus. 05138_ S-27 Virus destroyed. 05140_ Slug penetrates S-27 Virus. 05140_ S-27 Virus destroyed. 05140_ KE Penetrator destroyed. 05141_ Assembly Bed disabled. 05152_ >> DECODED: Garrison Access location. 05152_ 0b10 Decoder Chip [Skirmisher] destroyed. 05152_ Critical hit (Blast). 05158_ S-27 Virus suffers critical hit (Destroy). 05158_ Destroyed Lgt. Nuclear Core. 05160_ HV Slug penetrates Wall. 05162_ HV Slug penetrates S-27 Virus. Map ----- +----------------------------------------------------+ | ?????????????????????## """""" """""" #???# | | ??????????????????????# """""" """""" #???# | | ??????????????????????# """"" "" """ #???# | | ??????????????????????# """ [=" """" #???# | | ??????????????????????# %[% #???# | | ??????????????????????# ="""""" #???# | | ??????????????????????# """""" #???# | | ??????????????????????# [[ """"" """#???# | | ??????????????????????# [[ """""" T"#???# | | ??????????????????????# [[ """#???# | | ??????????????????????# #???# | | ??????????????????????# #??### | | ??????????????????????# "#"####""#### | | ??????????????????????# ## #??? | | ?????????????????????## ## #??? | | ?????????????######+## # ### | | ??????????#### # + | | ???????? / ### | | ???????? # #????? | | ??????????"T" #####% # #?????# ###### | | ?????????? ????????### "## #????????????? | | ???????????????????????# ### #????????????? | | ???????????????????????# #?##########????????????? | | ???????????????????????# #???????????????????????? | | ???????????????????#####s######??????????????????? | | ???????????????????"""""%@ ! #??????????????????? | | ???????????????????""T"" #??????????????????? | | ?????????????????# u #??????????????????? | | ?????????????????# #??????????????????? | | ?????????????????# #??????????????????? | | ?????????????????# #??????????????????? | | ?????????????????# """"""" #??????????????????? | | ?????????????????# """"""" #??????????????????? | | ?????????????????# """"""" #??????????????????? | | ?????????????????#????"""" #??????????????????? | | ?????????????????????????? #??????????????????? | | ?????????????????????????? #??????????????????? | | ??????????????????????????#####??????????????????? | | ?????????????????????????????????????????????????? | | ?????????????????????????????????????????????????? | | ?????????????????????????????????????????????????? | | ?????????????????????????????????????????????????? | | ?????????????????????????????????????????????????? | | ?????????????????????????????????????????????????? | | ?????????????????????????????????????????????????? | | ?????????????????????????????????????????????????? | | ?????????????????????????????????????????????????? | | ?????????????????????????????????????????????????? | | ?????????????????????????????????????????????????? | | ?????????????????????????????????????????????????? | +----------------------------------------------------+ Best States ------------- Heat Dissipation 40 Energy Generation 19 Energy Capacity 315 Matter Stores 300 Matter Capacity 300 Sight Range 16 Robot Scan Range 20 Terrain Scan Range 16 Terrain Scan Density 110 Cloak Strength 2 Corruption Block 15 Evasion (%) 63 Targeting Accuracy 5 Recoil Reduction 2 Offensive Hacking 10 Item Schematics ----------------- Airjet | -8/Materials | Scanalyzed Robot Schematics ------------------ None Fabricated ------------ Airjet | x2 | -7/Factory Airjet | x2 | -5/Factory Alien Tech Used ----------------- None Achievements -------------- Just What I Needed Party Time Challenges ------------ None Game ------ Seed AlphaHackingBattery Manual? 0 Play Time 01:16:46 Cumulative 18.1 hours Start 2024.04.09 @ 20:30:24 End 2024.04.12 @ 22:14:14 Sessions 3 Manual Loads 0 Difficulty Rogue Special Mode None Game No. 26 Rogue 26 Adventurer 0 Explorer 0 Win Type - Total 0 Types 0/0/0/0/0/0/0/0/0 Lore% 18 Gallery% 26 Achievement% 19 Wizard Run 0 Options --------- Layout 0 ASCII 0 Keyboard 0 Movement Mouse Keybinds 0 Fullscreen 1 Font 24/Smallcaps Map View 76x50 Zoom Use 0% Tactical HUD 1 Map Filters NONE Filters NONE Steam 1 RUN: e8fba5a6-d98b-4bc7-b296-c7e619465cb7